[Event "Late-Titled-Tuesday-Blitz-May-07-2024"]
[Site "Chess.com"]
[Date "2024.05.07"]
[Round "1"]
[White "Assumpcaos"]
[Black "ahkashefi2800"]
[Result "1-0"]
[WhiteElo "2175"]
[BlackElo "2573"]
[TimeControl "180+1"]
[EndTime "14:08:44 PDT"]
[Termination "Assumpcaos won on time"]

1. d4 {[%clk 0:02:59.6]} 1... d5 {[%clk 0:02:47]} 2. c4 {[%clk 0:02:40.7]} 2...
c6 {[%clk 0:02:46.6]} 3. Nc3 {[%clk 0:02:39.1]} 3... Nf6 {[%clk 0:02:47]} 4.
cxd5 {[%clk 0:02:39]} 4... cxd5 {[%clk 0:02:47.2]} 5. Bf4 {[%clk 0:02:39.6]}
5... Nc6 {[%clk 0:02:46.8]} 6. e3 {[%clk 0:02:40.1]} 6... a6 {[%clk 0:02:47.1]}
7. Nf3 {[%clk 0:02:39]} 7... Bg4 {[%clk 0:02:46.8]} 8. Be2 {[%clk 0:02:38]} 8...
e6 {[%clk 0:02:45.8]} 9. O-O {[%clk 0:02:37.2]} 9... Bd6 {[%clk 0:02:45]} 10.
Bxd6 {[%clk 0:02:34.8]} 10... Qxd6 {[%clk 0:02:45.9]} 11. Rc1 {[%clk 0:02:32.1]}
11... O-O {[%clk 0:02:45]} 12. a3 {[%clk 0:02:30.6]} 12... Rfc8 {[%clk
0:02:44.6]} 13. Na4 {[%clk 0:02:25.5]} 13... Nd7 {[%clk 0:02:37.1]} 14. Qd2
{[%clk 0:02:12]} 14... Rc7 {[%clk 0:02:35.3]} 15. b4 {[%clk 0:02:06.9]} 15...
Rac8 {[%clk 0:02:34.5]} 16. Nc5 {[%clk 0:02:05.1]} 16... h6 {[%clk 0:02:22.9]}
17. h3 {[%clk 0:02:00.5]} 17... Bxf3 {[%clk 0:02:22.7]} 18. Bxf3 {[%clk
0:02:00.8]} 18... Ndb8 {[%clk 0:02:19.9]} 19. Be2 {[%clk 0:01:52.9]} 19... Qd8
{[%clk 0:02:15.3]} 20. Bd3 {[%clk 0:01:40.9]} 20... Ne7 {[%clk 0:02:08.1]} 21.
Nb3 {[%clk 0:01:26.2]} 21... Rxc1 {[%clk 0:02:06.1]} 22. Rxc1 {[%clk 0:01:25.3]}
22... Rxc1+ {[%clk 0:02:06.6]} 23. Qxc1 {[%clk 0:01:24.6]} 23... Nd7 {[%clk
0:02:05.2]} 24. Na5 {[%clk 0:01:21.2]} 24... b5 {[%clk 0:02:01.4]} 25. Nc6
{[%clk 0:01:15.1]} 25... Nxc6 {[%clk 0:02:00]} 26. Qxc6 {[%clk 0:01:15.7]} 26...
Nb6 {[%clk 0:02:00]} 27. Kf1 {[%clk 0:01:01.9]} 27... Qb8 {[%clk 0:01:52.8]} 28.
Ke2 {[%clk 0:00:59.9]} 28... g5 {[%clk 0:01:48.1]} 29. g3 {[%clk 0:00:53.1]}
29... Kg7 {[%clk 0:01:47.8]} 30. Kd2 {[%clk 0:00:45.6]} 30... Qa7 {[%clk
0:01:47.5]} 31. Qd6 {[%clk 0:00:42.7]} 31... Nc4+ {[%clk 0:01:45.8]} 32. Bxc4
{[%clk 0:00:42.5]} 32... dxc4 {[%clk 0:01:42.1]} 33. Kc3 {[%clk 0:00:37.9]}
33... Qb7 {[%clk 0:01:40.4]} 34. Qe5+ {[%clk 0:00:35.7]} 34... Kg8 {[%clk
0:01:37.3]} 35. e4 {[%clk 0:00:36.1]} 35... Qa7 {[%clk 0:01:34.1]} 36. f4 {[%clk
0:00:33.2]} 36... gxf4 {[%clk 0:01:33.3]} 37. gxf4 {[%clk 0:00:33.5]} 37... Qe7
{[%clk 0:01:32.6]} 38. d5 {[%clk 0:00:25.6]} 38... Kh7 {[%clk 0:01:25.9]} 39. f5
{[%clk 0:00:25]} 39... Qg5 {[%clk 0:01:24]} 40. dxe6 {[%clk 0:00:23.4]} 40...
Qe3+ {[%clk 0:01:11.8]} 41. Kc2 {[%clk 0:00:23.4]} 41... Qd3+ {[%clk 0:01:11.6]}
42. Kc1 {[%clk 0:00:20.4]} 42... Qxa3+ {[%clk 0:01:11.1]} 43. Kd1 {[%clk
0:00:20.6]} 43... Qd3+ {[%clk 0:01:10.9]} 44. Ke1 {[%clk 0:00:20.2]} 44... Qe3+
{[%clk 0:01:10.7]} 45. Kd1 {[%clk 0:00:19.8]} 45... c3 {[%clk 0:01:09.8]} 46.
Qd5 {[%clk 0:00:14.3]} 46... fxe6 {[%clk 0:01:06.2]} 47. fxe6 {[%clk 0:00:13.7]}
47... Qxh3 {[%clk 0:00:33]} 48. e7 {[%clk 0:00:11.6]} 48... Qf1+ {[%clk
0:00:26.2]} 49. Kc2 {[%clk 0:00:10.9]} 49... Qf2+ {[%clk 0:00:26.8]} 50. Kxc3
{[%clk 0:00:11.1]} 50... Qf6+ {[%clk 0:00:27.4]} 51. e5 {[%clk 0:00:08.9]} 51...
Qxe7 {[%clk 0:00:27.5]} 52. Qd6 {[%clk 0:00:09.4]} 52... Qg7 {[%clk 0:00:24.1]}
53. Kd4 {[%clk 0:00:09.5]} 53... h5 {[%clk 0:00:23.6]} 54. Kd5 {[%clk
0:00:09.9]} 54... h4 {[%clk 0:00:21.6]} 55. e6 {[%clk 0:00:08.6]} 55... Qg5+
{[%clk 0:00:17.4]} 56. Kc6 {[%clk 0:00:08.4]} 56... Qg2+ {[%clk 0:00:06.3]} 57.
Kd7 {[%clk 0:00:07.5]} 57... Qg4 {[%clk 0:00:03.7]} 58. Kc7 {[%clk 0:00:07.8]}
58... Qc4+ {[%clk 0:00:02.6]} 59. Kd7 {[%clk 0:00:07.5]} 59... h3 {[%clk
0:00:02.8]} 60. e7 {[%clk 0:00:07.2]} 60... Qf7 {[%clk 0:00:02.9]} 61. Kd8
{[%clk 0:00:06.9]} 61... h2 {[%clk 0:00:01.5]} 62. Qxh2+ {[%clk 0:00:04.9]}
62... Kg7 {[%clk 0:00:00.5]} 63. Qg3+ {[%clk 0:00:05.8]} 1-0

[Event "Late-Titled-Tuesday-Blitz-May-07-2024"]
[Site "Chess.com"]
[Date "2024.05.07"]
[Round "1"]
[White "Caracal3000"]
[Black "Yaacovn"]
[Result "1/2-1/2"]
[WhiteElo "2505"]
[BlackElo "2841"]
[TimeControl "180+1"]
[EndTime "14:09:37 PDT"]
[Termination "Game drawn by repetition"]

1. e4 {[%clk 0:03:00.9]} 1... c6 {[%clk 0:02:49.8]} 2. d4 {[%clk 0:02:57.6]}
2... d5 {[%clk 0:02:49.6]} 3. Nc3 {[%clk 0:02:58.3]} 3... dxe4 {[%clk
0:02:49.3]} 4. Nxe4 {[%clk 0:02:59.2]} 4... Nf6 {[%clk 0:02:49.8]} 5. Nxf6+
{[%clk 0:02:59.8]} 5... gxf6 {[%clk 0:02:50.7]} 6. c3 {[%clk 0:03:00.5]} 6...
Qd5 {[%clk 0:02:50.6]} 7. Qf3 {[%clk 0:02:59]} 7... Bf5 {[%clk 0:02:50.2]} 8.
Qxd5 {[%clk 0:02:59]} 8... cxd5 {[%clk 0:02:51.1]} 9. Bf4 {[%clk 0:02:57.7]}
9... Nc6 {[%clk 0:02:51]} 10. Nf3 {[%clk 0:02:55]} 10... e6 {[%clk 0:02:51.3]}
11. Kd2 {[%clk 0:02:54]} 11... Kd7 {[%clk 0:02:51]} 12. Bd3 {[%clk 0:02:54]}
12... Bg6 {[%clk 0:02:50.9]} 13. h4 {[%clk 0:02:43.3]} 13... Rg8 {[%clk
0:02:50]} 14. g3 {[%clk 0:02:42.1]} 14... h5 {[%clk 0:02:47.4]} 15. Rhe1 {[%clk
0:02:30.2]} 15... a6 {[%clk 0:02:44.5]} 16. Re2 {[%clk 0:02:29.8]} 16... Na5
{[%clk 0:02:43.6]} 17. b3 {[%clk 0:02:27.9]} 17... Rc8 {[%clk 0:02:43.6]} 18.
Rae1 {[%clk 0:02:23.3]} 18... Ba3 {[%clk 0:02:41.8]} 19. Bxg6 {[%clk 0:02:23]}
19... Rxg6 {[%clk 0:02:41.6]} 20. Kd3 {[%clk 0:02:23.3]} 20... b5 {[%clk
0:02:41.3]} 21. Bc1 {[%clk 0:02:04]} 21... Bd6 {[%clk 0:02:37.9]} 22. Bd2 {[%clk
0:01:46.7]} 22... Nb7 {[%clk 0:02:25.1]} 23. Ng1 {[%clk 0:01:39]} 23... Rgg8
{[%clk 0:02:23]} 24. Nh3 {[%clk 0:01:38.6]} 24... Rc6 {[%clk 0:02:21.9]} 25. Rc1
{[%clk 0:01:23.1]} 25... Rgc8 {[%clk 0:02:21.4]} 26. Be1 {[%clk 0:01:15.4]}
26... Bb8 {[%clk 0:02:16.2]} 27. Rec2 {[%clk 0:01:15]} 27... Nd6 {[%clk
0:02:11.6]} 28. f3 {[%clk 0:01:15.6]} 28... Nf5 {[%clk 0:02:04.3]} 29. g4 {[%clk
0:00:57.6]} 29... hxg4 {[%clk 0:01:42.5]} 30. fxg4 {[%clk 0:00:58.5]} 30... Nxh4
{[%clk 0:01:37.5]} 31. Bxh4 {[%clk 0:00:56]} 31... Rh8 {[%clk 0:01:37.5]} 32.
Bxf6 {[%clk 0:00:38]} 32... Rxh3+ {[%clk 0:01:37.1]} 33. Ke2 {[%clk 0:00:37.4]}
33... Bd6 {[%clk 0:00:58]} 34. c4 {[%clk 0:00:14.2]} 34... Rh2+ {[%clk
0:00:31.1]} 35. Kd3 {[%clk 0:00:04.5]} 35... bxc4+ {[%clk 0:00:26.6]} 36. bxc4
{[%clk 0:00:05.4]} 36... Rh3+ {[%clk 0:00:20.6]} 37. Ke2 {[%clk 0:00:05.1]}
37... Ba3 {[%clk 0:00:16.8]} 38. Rb1 {[%clk 0:00:02.3]} 38... Rh2+ {[%clk
0:00:16.7]} 39. Kd3 {[%clk 0:00:02.4]} 39... Rh3+ {[%clk 0:00:15.4]} 40. Ke2
{[%clk 0:00:02.7]} 40... Rh2+ {[%clk 0:00:15.8]} 41. Kd3 {[%clk 0:00:03.3]}
41... Rxc2 {[%clk 0:00:16.5]} 42. Kxc2 {[%clk 0:00:03.8]} 42... Rxc4+ {[%clk
0:00:17]} 43. Kd3 {[%clk 0:00:04.5]} 43... Bd6 {[%clk 0:00:15.5]} 44. Rb7+
{[%clk 0:00:04.2]} 44... Rc7 {[%clk 0:00:15.3]} 45. Rb6 {[%clk 0:00:04]} 45...
Rc6 {[%clk 0:00:14.3]} 46. Rb7+ {[%clk 0:00:04.5]} 46... Ke8 {[%clk 0:00:14.2]}
47. Ra7 {[%clk 0:00:03.9]} 47... Bc7 {[%clk 0:00:12.6]} 48. Ra8+ {[%clk
0:00:04.2]} 48... Kd7 {[%clk 0:00:11.7]} 49. Rf8 {[%clk 0:00:04.5]} 49... Bd6
{[%clk 0:00:11.6]} 50. Rxf7+ {[%clk 0:00:04.8]} 50... Ke8 {[%clk 0:00:12.1]} 51.
Ra7 {[%clk 0:00:05.2]} 51... Kf8 {[%clk 0:00:07]} 52. g5 {[%clk 0:00:05.4]}
52... Rc7 {[%clk 0:00:05.1]} 53. Ra8+ {[%clk 0:00:05.5]} 53... Kf7 {[%clk
0:00:05.4]} 54. Rh8 {[%clk 0:00:04.8]} 54... Kg6 {[%clk 0:00:05.4]} 55. Rh6+
{[%clk 0:00:05.2]} 55... Kf5 {[%clk 0:00:05.8]} 56. Rh8 {[%clk 0:00:05]} 56...
Bb4 {[%clk 0:00:06]} 57. Ra8 {[%clk 0:00:05]} 57... Rc3+ {[%clk 0:00:06.1]} 58.
Ke2 {[%clk 0:00:05.1]} 58... Ra3 {[%clk 0:00:07]} 59. Rf8 {[%clk 0:00:04]} 59...
Rxa2+ {[%clk 0:00:07.3]} 60. Kf3 {[%clk 0:00:04.5]} 60... Ra3+ {[%clk
0:00:07.9]} 61. Kg2 {[%clk 0:00:04.9]} 61... Kg4 {[%clk 0:00:06.5]} 62. Rg8
{[%clk 0:00:03.1]} 62... Ra2+ {[%clk 0:00:06.7]} 63. Kf1 {[%clk 0:00:02.9]}
63... Kf3 {[%clk 0:00:07.2]} 64. Kg1 {[%clk 0:00:02.7]} 64... Bd2 {[%clk
0:00:07.6]} 65. Be5 {[%clk 0:00:01.6]} 65... Bf4 {[%clk 0:00:04.7]} 66. Bxf4
{[%clk 0:00:01.8]} 66... Kxf4 {[%clk 0:00:05]} 67. g6 {[%clk 0:00:02.4]} 67...
Kf5 {[%clk 0:00:05.1]} 68. g7 {[%clk 0:00:03]} 68... Kf6 {[%clk 0:00:05.6]} 69.
Re8 {[%clk 0:00:03.1]} 69... Kxg7 {[%clk 0:00:05.1]} 70. Rxe6 {[%clk 0:00:03.9]}
70... Rd2 {[%clk 0:00:05]} 71. Rxa6 {[%clk 0:00:03.7]} 71... Rxd4 {[%clk
0:00:04.5]} 72. Kf2 {[%clk 0:00:04.6]} 72... Re4 {[%clk 0:00:05.1]} 73. Rd6
{[%clk 0:00:04.2]} 73... Re5 {[%clk 0:00:05.4]} 74. Kf3 {[%clk 0:00:04.3]} 74...
Kf7 {[%clk 0:00:05.5]} 75. Kf4 {[%clk 0:00:04.9]} 75... Rh5 {[%clk 0:00:04.9]}
76. Ke3 {[%clk 0:00:03.8]} 76... Ke7 {[%clk 0:00:05.4]} 77. Ra6 {[%clk
0:00:03.6]} 77... Rh4 {[%clk 0:00:05.1]} 78. Kd3 {[%clk 0:00:04]} 78... Re4
{[%clk 0:00:05.2]} 79. Rh6 {[%clk 0:00:04.3]} 79... Kd7 {[%clk 0:00:05.2]} 80.
Ra6 {[%clk 0:00:04.1]} 80... Rh4 {[%clk 0:00:04.9]} 81. Rb6 {[%clk 0:00:04]}
81... Kc7 {[%clk 0:00:05.3]} 82. Ra6 {[%clk 0:00:04.6]} 82... Rb4 {[%clk
0:00:05.1]} 83. Rg6 {[%clk 0:00:05.2]} 83... Rh4 {[%clk 0:00:04.7]} 84. Rf6
{[%clk 0:00:05.4]} 84... Kd7 {[%clk 0:00:05.2]} 85. Rg6 {[%clk 0:00:05.8]} 85...
Re4 {[%clk 0:00:05.8]} 86. Ra6 {[%clk 0:00:06]} 86... Rg4 {[%clk 0:00:05.6]} 87.
Rh6 {[%clk 0:00:06.1]} 87... Rf4 {[%clk 0:00:05.7]} 88. Ra6 {[%clk 0:00:06.4]}
88... Rb4 {[%clk 0:00:05.7]} 89. Rh6 {[%clk 0:00:06.8]} 89... Ke7 {[%clk
0:00:06.1]} 90. Ra6 {[%clk 0:00:07]} 90... Re4 {[%clk 0:00:06.8]} 91. Rb6 {[%clk
0:00:07.3]} 91... Re6 {[%clk 0:00:07.1]} 92. Rxe6+ {[%clk 0:00:07.6]} 92... Kxe6
{[%clk 0:00:08]} 93. Kd4 {[%clk 0:00:08.3]} 93... Kd6 {[%clk 0:00:08.9]} 94. Kd3
{[%clk 0:00:08.9]} 94... Kc5 {[%clk 0:00:09.8]} 95. Kc3 {[%clk 0:00:09.5]} 95...
Kc6 {[%clk 0:00:10.3]} 96. Kd4 {[%clk 0:00:10]} 96... Kd6 {[%clk 0:00:11.2]} 97.
Kd3 {[%clk 0:00:10.6]} 97... Ke5 {[%clk 0:00:12.1]} 98. Ke3 {[%clk 0:00:11.2]}
98... d4+ {[%clk 0:00:12.8]} 99. Kd3 {[%clk 0:00:11.9]} 99... Kd5 {[%clk
0:00:13.7]} 100. Kd2 {[%clk 0:00:12.5]} 100... Kc4 {[%clk 0:00:14.6]} 101. Kc2
{[%clk 0:00:13.1]} 101... Kd5 {[%clk 0:00:15.1]} 102. Kd3 {[%clk 0:00:13.7]}
102... Ke5 {[%clk 0:00:15.3]} 103. Kd2 {[%clk 0:00:14.2]} 103... Ke4 {[%clk
0:00:15.6]} 104. Ke2 {[%clk 0:00:14.8]} 104... d3+ {[%clk 0:00:13.9]} 105. Kd2
{[%clk 0:00:15.3]} 105... Kd4 {[%clk 0:00:14.4]} 106. Kd1 {[%clk 0:00:15.7]}
106... Kc3 {[%clk 0:00:14.6]} 107. Kc1 {[%clk 0:00:16.2]} 107... Kc4 {[%clk
0:00:14.6]} 108. Kd2 {[%clk 0:00:16.8]} 108... Kd4 {[%clk 0:00:15.1]} 109. Kd1
{[%clk 0:00:17.3]} 109... Ke3 {[%clk 0:00:14.3]} 110. Ke1 {[%clk 0:00:17.8]}
110... Ke4 {[%clk 0:00:14]} 111. Kd2 {[%clk 0:00:18.4]} 111... Kd4 {[%clk
0:00:14.9]} 1/2-1/2

[Event "Late-Titled-Tuesday-Blitz-May-07-2024"]
[Site "Chess.com"]
[Date "2024.05.07"]
[Round "1"]
[White "Navyblue1"]
[Black "Defend1r"]
[Result "0-1"]
[WhiteElo "2225"]
[BlackElo "2610"]
[TimeControl "180+1"]
[EndTime "14:09:44 PDT"]
[Termination "Defend1r won on time"]

1. d4 {[%clk 0:02:55]} 1... Nf6 {[%clk 0:02:58.7]} 2. c4 {[%clk 0:02:41.1]} 2...
e6 {[%clk 0:02:58.2]} 3. Nf3 {[%clk 0:02:38.1]} 3... d5 {[%clk 0:02:57.1]} 4.
Nc3 {[%clk 0:02:35.8]} 4... Be7 {[%clk 0:02:56.5]} 5. Bg5 {[%clk 0:02:32.7]}
5... O-O {[%clk 0:02:52.7]} 6. e3 {[%clk 0:02:31.5]} 6... Nbd7 {[%clk
0:02:52.2]} 7. Qc2 {[%clk 0:02:30.1]} 7... h6 {[%clk 0:02:50.6]} 8. Bh4 {[%clk
0:02:29.1]} 8... a6 {[%clk 0:02:31.2]} 9. c5 {[%clk 0:02:22.2]} 9... c6 {[%clk
0:02:21.5]} 10. Be2 {[%clk 0:02:08.3]} 10... b6 {[%clk 0:02:21.1]} 11. cxb6
{[%clk 0:02:01.3]} 11... Nxb6 {[%clk 0:02:08.9]} 12. O-O {[%clk 0:02:00.4]}
12... Nfd7 {[%clk 0:02:01.7]} 13. Bxe7 {[%clk 0:01:58.6]} 13... Qxe7 {[%clk
0:02:02.6]} 14. Na4 {[%clk 0:01:34.6]} 14... Nxa4 {[%clk 0:02:00.6]} 15. Qxa4
{[%clk 0:01:35.5]} 15... c5 {[%clk 0:01:59.7]} 16. dxc5 {[%clk 0:01:12.9]} 16...
Qxc5 {[%clk 0:01:36.7]} 17. Rac1 {[%clk 0:01:09.2]} 17... Qb6 {[%clk 0:01:34]}
18. Qd4 {[%clk 0:00:53.3]} 18... Rb8 {[%clk 0:01:28.6]} 19. b3 {[%clk
0:00:49.8]} 19... Nf6 {[%clk 0:01:22.8]} 20. Rc2 {[%clk 0:00:43.1]} 20... Bd7
{[%clk 0:01:20.7]} 21. Rfc1 {[%clk 0:00:33.8]} 21... Qa5 {[%clk 0:01:20.5]} 22.
Ne5 {[%clk 0:00:20.6]} 22... Bb5 {[%clk 0:00:42.5]} 23. Bxb5 {[%clk 0:00:19.7]}
23... Rxb5 {[%clk 0:00:38.5]} 24. h3 {[%clk 0:00:18.7]} 24... Qa3 {[%clk
0:00:34.8]} 25. Rc8 {[%clk 0:00:16.1]} 25... Rb8 {[%clk 0:00:31.3]} 26. Rxf8+
{[%clk 0:00:15.2]} 26... Rxf8 {[%clk 0:00:28.3]} 27. Rc2 {[%clk 0:00:15.1]}
27... Qd6 {[%clk 0:00:22.1]} 28. Nd3 {[%clk 0:00:13.2]} 28... Ne4 {[%clk
0:00:21.3]} 29. Qe5 {[%clk 0:00:11]} 29... Qa3 {[%clk 0:00:21]} 30. Nf4 {[%clk
0:00:09.4]} 30... Nf6 {[%clk 0:00:18.3]} 31. Qd4 {[%clk 0:00:09]} 31... Rb8
{[%clk 0:00:18.2]} 32. Nd3 {[%clk 0:00:09.1]} 32... a5 {[%clk 0:00:18.1]} 33. f3
{[%clk 0:00:08]} 33... Qd6 {[%clk 0:00:17.4]} 34. Kf2 {[%clk 0:00:07.2]} 34...
Ra8 {[%clk 0:00:15.9]} 35. Qe5 {[%clk 0:00:06.7]} 35... Qb6 {[%clk 0:00:14.9]}
36. Qd4 {[%clk 0:00:06.4]} 36... Qd8 {[%clk 0:00:12.1]} 37. Ne5 {[%clk
0:00:05.8]} 37... Qe8 {[%clk 0:00:11.7]} 38. Qc5 {[%clk 0:00:04]} 38... a4
{[%clk 0:00:11.5]} 39. b4 {[%clk 0:00:03]} 39... a3 {[%clk 0:00:10.3]} 40. b5
{[%clk 0:00:02.5]} 40... Rb8 {[%clk 0:00:08.1]} 41. b6 {[%clk 0:00:02.1]} 41...
Nd7 {[%clk 0:00:08.1]} 42. Nxd7 {[%clk 0:00:01.8]} 42... Qxd7 {[%clk 0:00:09]}
43. Qc7 {[%clk 0:00:01.7]} 43... Qxc7 {[%clk 0:00:08]} 44. bxc7 {[%clk
0:00:01.8]} 44... Rc8 {[%clk 0:00:08.5]} 45. Rc3 {[%clk 0:00:02.1]} 45... Kf8
{[%clk 0:00:08.4]} 46. Rxa3 {[%clk 0:00:02.3]} 46... Rxc7 {[%clk 0:00:08.9]} 47.
Ra8+ {[%clk 0:00:02.3]} 47... Ke7 {[%clk 0:00:09.1]} 48. Ra6 {[%clk 0:00:02.6]}
48... Rc2+ {[%clk 0:00:09.3]} 49. Kg3 {[%clk 0:00:02.7]} 49... Kf6 {[%clk
0:00:09.7]} 50. a4 {[%clk 0:00:01.7]} 50... Re2 {[%clk 0:00:09]} 51. Rb6 {[%clk
0:00:00.5]} 51... Rxe3 {[%clk 0:00:08.8]} 52. a5 {[%clk 0:00:00.9]} 52... Ra3
{[%clk 0:00:09.4]} 53. a6 {[%clk 0:00:01]} 53... Ra2 {[%clk 0:00:09]} 54. f4
{[%clk 0:00:01.1]} 54... d4 {[%clk 0:00:08.7]} 55. Rd6 {[%clk 0:00:00.3]} 55...
d3 {[%clk 0:00:07.9]} 56. Rxd3 {[%clk 0:00:00.4]} 56... Rxa6 {[%clk 0:00:08]}
57. Rf3 {[%clk 0:00:01.1]} 57... Ra4 {[%clk 0:00:08.3]} 58. Rf2 {[%clk
0:00:01.4]} 58... Kf5 {[%clk 0:00:08.2]} 59. Rf3 {[%clk 0:00:02.2]} 59... Ra2
{[%clk 0:00:07.3]} 60. Kh2 {[%clk 0:00:02.1]} 60... Ke4 {[%clk 0:00:07.3]} 61.
Kg3 {[%clk 0:00:02.7]} 61... Ra1 {[%clk 0:00:07]} 62. Rb3 {[%clk 0:00:03.1]}
62... Kf5 {[%clk 0:00:06.6]} 63. Rb5+ {[%clk 0:00:03.2]} 63... Kf6 {[%clk
0:00:06.9]} 64. Rb6 {[%clk 0:00:03.5]} 64... g6 {[%clk 0:00:07.3]} 65. Rb5
{[%clk 0:00:03.1]} 65... Ra3+ {[%clk 0:00:07.6]} 66. Kf2 {[%clk 0:00:02.5]}
66... h5 {[%clk 0:00:07.9]} 67. Ke2 {[%clk 0:00:02.3]} 67... Kg7 {[%clk
0:00:06.3]} 68. Kf2 {[%clk 0:00:02.5]} 68... Rc3 {[%clk 0:00:06.6]} 69. Ke2
{[%clk 0:00:01.7]} 69... Kf8 {[%clk 0:00:06]} 70. Rb7 {[%clk 0:00:01.5]} 70...
Rc5 {[%clk 0:00:05.5]} 71. Kf3 {[%clk 0:00:01.2]} 71... Kg7 {[%clk 0:00:05]} 72.
Kg3 {[%clk 0:00:01.3]} 72... Rd5 {[%clk 0:00:05.2]} 73. Ra7 {[%clk 0:00:01.1]}
73... Kf6 {[%clk 0:00:05]} 74. Kf3 {[%clk 0:00:01.5]} 74... Rd3+ {[%clk
0:00:05.2]} 75. Ke2 {[%clk 0:00:01.5]} 75... Rd6 {[%clk 0:00:05]} 76. Ke3 {[%clk
0:00:01.3]} 76... Rb6 {[%clk 0:00:03.5]} 77. Ra5 {[%clk 0:00:01.5]} 77... Rb7
{[%clk 0:00:02.9]} 78. Kf3 {[%clk 0:00:01.8]} 78... Re7 {[%clk 0:00:03.3]} 79.
Kg3 {[%clk 0:00:02.2]} 79... e5 {[%clk 0:00:03.3]} 80. fxe5+ {[%clk 0:00:02.6]}
80... Rxe5 {[%clk 0:00:03.8]} 81. Ra6+ {[%clk 0:00:03.2]} 81... Kg5 {[%clk
0:00:03.7]} 82. Ra4 {[%clk 0:00:03]} 82... Re3+ {[%clk 0:00:03.3]} 83. Kf2
{[%clk 0:00:03.2]} 83... Rb3 {[%clk 0:00:03.1]} 84. Ra5+ {[%clk 0:00:03.5]}
84... f5 {[%clk 0:00:03.1]} 85. Ra4 {[%clk 0:00:03]} 85... f4 {[%clk 0:00:02.1]}
86. Ra5+ {[%clk 0:00:03.2]} 86... Kh4 {[%clk 0:00:02.4]} 87. Ra4 {[%clk
0:00:01.9]} 87... g5 {[%clk 0:00:02.5]} 88. Ra7 {[%clk 0:00:00.9]} 88... Rb2+
{[%clk 0:00:02.7]} 89. Kf3 {[%clk 0:00:00.4]} 89... Rb3+ {[%clk 0:00:02.7]} 90.
Kf2 {[%clk 0:00:00.6]} 90... Rb2+ {[%clk 0:00:02]} 91. Kf3 {[%clk 0:00:00.7]}
91... g4+ {[%clk 0:00:02.5]} 92. hxg4 {[%clk 0:00:00.2]} 92... hxg4+ {[%clk
0:00:03.4]} 93. Kxf4 {[%clk 0:00:00.3]} 93... Rf2+ {[%clk 0:00:03.9]} 0-1